{"text_format":"1","workbook":"xlsx","n_sheets":4,"sheets":["NCAA","Module1","Module2","Module3"],"not_rendered":{"charts":0,"images":0,"macros":1,"external_links":0,"defined_names":3,"comments":0,"pivot_tables":0},"unopened":[{"sheet":"Module1","index":1,"reason":"part_missing"},{"sheet":"Module2","index":2,"reason":"part_missing"},{"sheet":"Module3","index":3,"reason":"part_missing"}],"bounds":{"document_bytes":16777216,"sheet_cells":100000,"rows_first":2000,"rows_last":500,"rows_between":2000,"halvings":0,"cell_chars":16384,"cell_head_chars":4096},"cells_cut":0,"cells_raw":0,"read":"whole","date_system":"1900"}

{"sheet":"NCAA","index":0,"n_rows":254,"n_cols":48,"rows_kept":254,"cut":false,"hidden":false,"merged":[]}
[null,null,null,null,"NCAA Pool History (1986-2025)"]
[null,"Total $:",null,{"$f":"SUM(F2:AQ2)","v":73252.600000000006},{"$f":"2360","v":2360},2475,2275,2425,2845,3060,{"$f":"SUM(K5:K251)","v":3000},2930,2735,2875,3220,3045,2930,3040,2595,2390,2605,2515,2400,2130,1700,1475,1220,1125,1120,1125,1195,1155,1315,2526,2070.5,1627.1000000000001,1320,1005,785,515,270,156,58]
[null,"# Entries:",null,{"$f":"SUM(F3:AQ3)","v":14724},472,495,455,485,569,612,600,586,547,575,644,609,586,608,519,478,521,503,480,426,340,295,244,225,224,225,239,231,263,505,414,325,264,201,157,103,90,52,29]
["Pos","Past Cashers\n(Past Winners Highlighted)","# Yrs\nCashed","Ttl $",25,24,23,22,21,19,18,17,16,15,14,13,12,"11","'10","'09","'08","'07","'06","'05","'04","'03","'02","'01","'00","'99","'98","'97","'96","'95","'94","'93","'92","'91","'90","'89","'88","'87","'86"]
[1,"Forrest, Kevin",{"$f":"COUNT(E5:AQ5)","v":8},{"$f":"SUM(E5:AQ5)","v":2032.5},275,null,null,null,null,null,null,null,null,200,null,null,null,null,null,null,615,null,null,120,120,null,280,365,57.5]
[{"$f":"IF(D6=D5,\"\"\"\",ROW(A6)-ROW($A$4))","v":2},"Efing, Todd",{"$f":"COUNT(E6:AQ6)","v":5},{"$f":"SUM(E6:AQ6)","v":2015},null,null,null,null,null,null,null,100,null,525,null,null,null,1050,null,130,null,null,null,null,null,210]
[{"$f":"IF(D7=D6,\"\"\"\",ROW(A7)-ROW($A$4))","v":3},"Osier, Keith",{"$f":"COUNT(E7:AQ7)","v":9},{"$f":"SUM(E7:AQ7)","v":1880},null,null,405,400,190,200,null,null,null,null,100,null,null,null,null,null,null,null,300,null,null,null,null,null,null,null,null,null,65,95,null,null,null,125]
[4,"Heidt, Tom",{"$f":"COUNT(E8:AQ8)","v":11},{"$f":"SUM(E8:AQ8)","v":1659.5},null,400,null,null,null,null,null,null,null,null,null,130,null,null,105,null,null,null,425,null,null,null,35,null,237.5,null,null,34,138,53,null,null,null,55,null,null,null,47,null,null,null,null,null," "]
[5,"Osier, John",{"$f":"COUNT(E9:AQ9)","v":8},{"$f":"SUM(E9:AQ9)","v":1585},null,null,null,null,null,600,null,null,125,null,325,null,null,100,null,null,null,null,null,null,50,200,null,null,null,null,null,null,105,null,null,null,null,null,80]
[6,"Regan, Tom",{"$f":"COUNT(E10:AQ10)","v":4},{"$f":"SUM(E10:AQ10)","v":1470},null,null,null,null,300,null,null,615,null,null,null,null,null,null,455,null,null,100]
[7,"Cole, John",{"$f":"COUNT(E11:AQ11)","v":7},{"$f":"SUM(E11:AQ11)","v":1463},null,null,null,null,null,null,400,null,null,null,238,null,null,null,100,null,30,300,120,275]
[8,"Olmstead, Gary",{"$f":"COUNT(E12:AQ12)","v":6},{"$f":"SUM(E12:AQ12)","v":1358},null,null,null,null,null,null,null,null,null,null,null,400,null,null,null,null,275,null,175,null,null,260,null,null,null,null,null,null,null,53,195]
[9,"Cupelli, Tony",{"$f":"COUNT(E13:AQ13)","v":2},{"$f":"SUM(E13:AQ13)","v":1243},null,null,null,null,400,null,843]
[10,"Burr, Mike",{"$f":"COUNT(E14:AQ14)","v":8},{"$f":"SUM(E14:AQ14)","v":1182},null,null,null,null,null,null,null,null,100,null,null,100,100,null,null,78,200,null,null,null,null,null,95,null,null,null,null,175,null,334]
[11,"Salisbury, Doug",{"$f":"COUNT(E15:AQ15)","v":7},{"$f":"SUM(E15:AQ15)","v":1171},null,213,null,null,null,null,null,100,null,350,null,null,100,null,null,78,null,240,null,90]
[12,"Garcia, Jon",{"$f":"COUNT(E16:AQ16)","v":1},{"$f":"SUM(E16:AQ16)","v":1147},null,null,null,null,null,null,null,null,1147]
[13,"Scibetta, Pat",{"$f":"COUNT(E17:AQ17)","v":1},{"$f":"SUM(E17:AQ17)","v":1085},null,null,null,1085]
[14,"Zoltoski, Todd",{"$f":"COUNT(E18:AQ18)","v":6},{"$f":"SUM(E18:AQ18)","v":1073},null,275,300,null,null,null,null,null,null,null,null,null,null,null,null,155,110,100,null,null,null,null,null,null,null,null,null,null,null,null,null,133]
[15,"Osier, Tim",{"$f":"COUNT(E19:AQ19)","v":6},{"$f":"SUM(E19:AQ19)","v":1025.5},null,null,null,null,null,null,200,null,null,null,null,180,175,null,null,403,null,null,null,null,null,null,null,null,57.5,null,null,null,null,null,10]
[16,"Maines, Danny",{"$f":"COUNT(E20:AQ20)","v":2},{"$f":"SUM(E20:AQ20)","v":974},null,null,190,null,null,784]
[17,"Olmstead, Todd",{"$f":"COUNT(E21:AQ21)","v":4},{"$f":"SUM(E21:AQ21)","v":935},null,null,null,null,null,350,null,null,null,null,null,null,275,null,null,null,null,null,null,null,65,null,null,null,null,null,null,null,null,null,null,245]
[18,"Browne, Dave",{"$f":"COUNT(E22:AQ22)","v":4},{"$f":"SUM(E22:AQ22)","v":928},550,null,null,null,null,null,138,null,null,null,null,null,null,null,null,null,30,210]
[19,"Zoltoski, Brynn",{"$f":"COUNT(E23:AQ23)","v":2},{"$f":"SUM(E23:AQ23)","v":915},null,null,null,null,null,null,null,515,null,null,null,null,null,400]
[20,"Burr, Jeff",{"$f":"COUNT(E24:AQ24)","v":5},{"$f":"SUM(E24:AQ24)","v":909},null,null,null,null,null,null,null,null,null,null,null,null,null,null,null,null,null,null,null,null,null,null,325,75,null,null,175,null,null,214,null,null,120]
[21,"Didas, Cody",{"$f":"COUNT(E25:AQ25)","v":3},{"$f":"SUM(E25:AQ25)","v":885},null,null,635,null,null,null,null,null,null,null,null,null,null,130,null,null,null,120]
[22,"Panella, Sean",{"$f":"COUNT(E26:AQ26)","v":2},{"$f":"SUM(E26:AQ26)","v":845},null,607,null,null,null,null,238]
[23,"Popielarz, Dave",{"$f":"COUNT(E27:AQ27)","v":4},{"$f":"SUM(E27:AQ27)","v":838},null,null,null,null,null,113,null,null,null,null,null,null,null,null,null,null,180,435,null,null,null,110]
[24,"Jerome, Scott",{"$f":"COUNT(E28:AQ28)","v":3},{"$f":"SUM(E28:AQ28)","v":806},275,null,null,null,null,null,281,null,null,null,null,null,null,null,null,null,null,null,250]
[25,"Roesch, Dorothy",{"$f":"COUNT(E29:AQ29)","v":1},{"$f":"SUM(E29:AQ29)","v":765},null,null,null,null,765]
[26,"Byrne, Frank",{"$f":"COUNT(E30:AQ30)","v":4},{"$f":"SUM(E30:AQ30)","v":755},null,null,null,null,null,null,null,null,null,null,null,null,275,null,350,null,null,null,null,null,null,null,null,75,null,null,null,null,null,null,null,null,null,55]
[27,"Annesi, Joe",{"$f":"COUNT(E31:AQ31)","v":4},{"$f":"SUM(E31:AQ31)","v":735},100,null,null,null,null,null,null,null,null,null,325,null,null,null,null,200,110]
[28,"Petrarca, Paul",{"$f":"COUNT(E32:AQ32)","v":4},{"$f":"SUM(E32:AQ32)","v":728},null,null,null,null,null,null,null,325,null,null,null,null,null,null,null,null,null,null,null,null,null,null,95,null,null,null,228,null,null,80]
[29,"Fairland, Deb",{"$f":"COUNT(E33:AQ33)","v":2},{"$f":"SUM(E33:AQ33)","v":704},585,null,null,null,null,null,null,null,null,null,null,null,119]
[30,"Stein, Mark",{"$f":"COUNT(E34:AQ34)","v":2},{"$f":"SUM(E34:AQ34)","v":700},null,null,null,null,null,null,null,null,null,null,400,null,null,null,null,null,null,null,null,null,null,null,null,null,null,null,null,null,null,null,null,null,300]
[31,"Britt, Mark",{"$f":"COUNT(E35:AQ35)","v":3},{"$f":"SUM(E35:AQ35)","v":675},null,null,400,null,100,null,175]
[32,"Freret, Norm",{"$f":"COUNT(E36:AQ36)","v":2},{"$f":"SUM(E36:AQ36)","v":668},null,null,null,null,null,null,null,null,null,null,568,null,null,null,null,null,null,null,100]
[33,"Knight, Jason",{"$f":"COUNT(E37:AQ37)","v":1},{"$f":"SUM(E37:AQ37)","v":645},null,null,null,null,null,null,null,null,null,null,null,645]
[34,"Reimer, Jay",{"$f":"COUNT(E38:AQ38)","v":3},{"$f":"SUM(E38:AQ38)","v":625},null,null,null,null,null,null,null,null,null,null,null,null,null,null,100,null,null,null,null,null,475,50]
[35,"Mosher, Matt",{"$f":"COUNT(E39:AQ39)","v":4},{"$f":"SUM(E39:AQ39)","v":619},null,null,null,null,null,null,null,null,null,null,null,null,119,null,null,null,null,null,null,375,65,60]
[36,"Dillon, Pat",{"$f":"COUNT(E40:AQ40)","v":3},{"$f":"SUM(E40:AQ40)","v":613},null,null,null,null,100,113,null,null,null,400]
[37,"Goodman, Paul",{"$f":"COUNT(E41:AQ41)","v":2},{"$f":"SUM(E41:AQ41)","v":600},null,null,null,null,300,300]
["\"","Lennon, Mark",{"$f":"COUNT(E42:AQ42)","v":2},{"$f":"SUM(E42:AQ42)","v":600},null,null,null,null,null,null,null,250,350]
[39,"Devore, Nick",{"$f":"COUNT(E43:AQ43)","v":4},{"$f":"SUM(E43:AQ43)","v":580},null,null,null,null,null,null,null,null,null,null,null,null,null,null,null,405,110,null,null,null,null,10,null,55]
[40,"Didas, Pat",{"$f":"COUNT(E44:AQ44)","v":4},{"$f":"SUM(E44:AQ44)","v":569},null,null,null,null,100,null,null,null,null,null,null,null,119,null,140,null,null,210]
[41,"Annesi-Stott, Pat",{"$f":"COUNT(E45:AQ45)","v":1},{"$f":"SUM(E45:AQ45)","v":525},null,null,null,null,null,null,525]
[42,"Ricci, Dan",{"$f":"COUNT(E46:AQ46)","v":3},{"$f":"SUM(E46:AQ46)","v":523},null,null,null,170,null,null,null,null,null,null,null,275,null,null,null,78]
["\"","Smith, Jerry",{"$f":"COUNT(E47:AQ47)","v":2},{"$f":"SUM(E47:AQ47)","v":523},null,123,null,null,null,null,null,null,400]
[44,"Rodrigues, Manny",{"$f":"COUNT(E48:AQ48)","v":3},{"$f":"SUM(E48:AQ48)","v":515},null,null,null,null,null,null,null,null,null,null,null,null,null,null,275,null,150,null,null,90]
[45,"Annesi, Mark",{"$f":"COUNT(E49:AQ49)","v":1},{"$f":"SUM(E49:AQ49)","v":503},null,null,null,null,null,null,null,null,null,null,null,null,503]
[46,"Pilaroscia, Rocky",{"$f":"COUNT(E50:AQ50)","v":3},{"$f":"SUM(E50:AQ50)","v":480},null,null,null,null,null,null,null,null,null,null,null,null,null,null,null,null,null,null,null,null,null,null,null,null,null,null,null,null,null,95,null,285,null,null,null,100]
[47,"Dzwigal, Mo",{"$f":"COUNT(E51:AQ51)","v":3},{"$f":"SUM(E51:AQ51)","v":453},null,null,null,null,null,null,null,null,null,null,null,null,null,null,null,null,null,null,null,null,null,null,null,null,200,null,null,null,null,53,null,null,null,null,200]
[48,"Tirrell, Jim",{"$f":"COUNT(E52:AQ52)","v":2},{"$f":"SUM(E52:AQ52)","v":450},null,null,null,null,null,null,null,null,null,null,null,350,null,null,null,null,null,100]
[49,"Mercer, Chris",{"$f":"COUNT(E53:AQ53)","v":2},{"$f":"SUM(E53:AQ53)","v":428},null,null,null,null,190,null,null,null,null,null,238]
[50,"McCormick, Matt",{"$f":"COUNT(E54:AQ54)","v":2},{"$f":"SUM(E54:AQ54)","v":426},null,null,null,null,null,null,null,213,null,null,null,null,213]
[51,"Moore, Mike",{"$f":"COUNT(E55:AQ55)","v":4},{"$f":"SUM(E55:AQ55)","v":420.5},null,null,null,null,null,null,null,213,null,null,null,null,null,null,null,null,30,null,null,null,80,null,null,null,97.5]
[52,"Iannopollo, Rocco",{"$f":"COUNT(E56:AQ56)","v":2},{"$f":"SUM(E56:AQ56)","v":413},null,213,null,null,null,null,null,null,null,200]
[53,"Malta, Matt",{"$f":"COUNT(E57:AQ57)","v":2},{"$f":"SUM(E57:AQ57)","v":410},null,null,null,null,null,null,null,null,null,null,null,null,null,null,null,null,275,null,135]
["\"","Tauer, Jack",{"$f":"COUNT(E58:AQ58)","v":3},{"$f":"SUM(E58:AQ58)","v":410},null,null,null,null,null,null,null,null,null,null,null,null,null,275,105,null,30]
[55,"Lyons, Carolyn",{"$f":"COUNT(E59:AQ59)","v":1},{"$f":"SUM(E59:AQ59)","v":400},null,null,null,null,null,null,null,null,null,null,null,null,400]
[56,"Heidt, Pat",{"$f":"COUNT(E60:AQ60)","v":2},{"$f":"SUM(E60:AQ60)","v":385},275,null,null,null,null,null,null,null,null,null,null,null,null,null,null,110]
["\"","Mosher-Nozzi, Leah",{"$f":"COUNT(E61:AQ61)","v":2},{"$f":"SUM(E61:AQ61)","v":385},null,null,null,null,null,null,null,null,null,null,null,null,null,null,175,null,null,210]
[58,"Wheeler, Chuck",{"$f":"COUNT(E62:AQ62)","v":3},{"$f":"SUM(E62:AQ62)","v":377.5},null,null,null,null,null,null,null,null,null,null,null,null,null,null,null,null,null,null,null,null,null,null,null,null,97.5,null,null,null,null,25,null,null,null,255]
[59,"Bolt, Jim",{"$f":"COUNT(E63:AQ63)","v":3},{"$f":"SUM(E63:AQ63)","v":371.7},null,null,null,null,null,null,null,null,null,null,null,null,null,null,120,null,null,null,null,null,null,null,null,null,null,null,235,null,null,null,null,16.7]
[60,"Templeton, Jim",{"$f":"COUNT(E64:AQ64)","v":3},{"$f":"SUM(E64:AQ64)","v":365},null,null,null,null,null,null,null,null,null,null,null,null,null,null,null,null,30,null,null,null,175,null,null,null,160]
[61,"Lee, Tom",{"$f":"COUNT(E65:AQ65)","v":3},{"$f":"SUM(E65:AQ65)","v":357},null,null,null,null,null,null,null,null,null,null,null,null,null,null,null,null,null,null,null,null,null,110,null,null,null,null,null,null,null,64,183]
[62,"Parsons, John",{"$f":"COUNT(E66:AQ66)","v":2},{"$f":"SUM(E66:AQ66)","v":355},null,null,null,null,null,null,null,null,null,null,null,null,null,null,null,null,null,null,null,null,null,null,null,null,null,null,null,null,null,null,null,300,null,null,null,null,55]
["\"","Stein, Nate",{"$f":"COUNT(E67:AQ67)","v":3},{"$f":"SUM(E67:AQ67)","v":355},null,null,null,null,null,150,null,100,null,null,null,null,null,null,null,null,null,null,null,105]
[64,"Levandowski, Carl",{"$f":"COUNT(E68:AQ68)","v":5},{"$f":"SUM(E68:AQ68)","v":344},null,null,null,null,null,null,null,null,null,null,null,null,null,null,null,null,null,null,null,null,null,null,null,null,null,null,null,60,null,64,null,null,70,90,60]
[65,"Cygan, Bill",{"$f":"COUNT(E69:AQ69)","v":2},{"$f":"SUM(E69:AQ69)","v":338},null,null,null,null,null,null,null,null,null,null,238,null,100]
[66,"Olmstead, Rob",{"$f":"COUNT(E70:AQ70)","v":2},{"$f":"SUM(E70:AQ70)","v":335},null,null,null,null,null,null,null,null,null,null,null,275,null,60]
[{"$f":"IF(D71=D70,\"\"\"\",ROW(A71)-ROW($A$4))","v":67},"DiPaola, S.",{"$f":"COUNT(E71:AQ71)","v":3},{"$f":"SUM(E71:AQ71)","v":333},null,null,null,null,null,null,null,null,null,null,null,null,null,null,null,null,null,null,null,150,50,null,null,null,null,null,null,null,null,null,null,133]
[68,"Mastromatteo, Adam",{"$f":"COUNT(E72:AQ72)","v":2},{"$f":"SUM(E72:AQ72)","v":330},null,null,null,null,null,null,null,null,null,200,null,130]
[69,"Monroe, Margaret",{"$f":"COUNT(E73:AQ73)","v":2},{"$f":"SUM(E73:AQ73)","v":326},null,null,null,null,null,null,null,null,null,null,null,null,null,null,null,null,null,null,null,null,null,null,null,null,null,null,null,226,null,null,null,null,100]
[70,"Harris, John",{"$f":"COUNT(E74:AQ74)","v":1},{"$f":"SUM(E74:AQ74)","v":325},null,null,null,null,null,null,null,325]
[71,"Sorensen, Pete",{"$f":"COUNT(E75:AQ75)","v":2},{"$f":"SUM(E75:AQ75)","v":305},null,null,null,null,null,null,null,null,null,null,null,null,null,null,null,null,null,null,null,null,null,null,null,null,null,null,null,null,null,null,null,null,225,null,null,80]
[72,"Brindle, Todd",{"$f":"COUNT(E76:AQ76)","v":2},{"$f":"SUM(E76:AQ76)","v":300},100,null,null,null,null,null,null,null,null,null,null,null,null,null,null,null,null,null,null,200]
["\"","Ebert, Karl",{"$f":"COUNT(E77:AQ77)","v":1},{"$f":"SUM(E77:AQ77)","v":300},null,null,null,null,null,null,null,null,null,null,null,null,null,null,null,null,null,null,null,null,null,null,null,null,null,null,null,null,null,300]
["\"","Haley, Dan",{"$f":"COUNT(E78:AQ78)","v":1},{"$f":"SUM(E78:AQ78)","v":300},null,null,null,null,null,null,null,null,300]
["\"","Kauffman, Greg",{"$f":"COUNT(E79:AQ79)","v":1},{"$f":"SUM(E79:AQ79)","v":300},null,null,null,null,null,null,null,null,null,null,null,null,null,null,null,null,null,null,300]
["\"","Pietrantoni, Philip",{"$f":"COUNT(E80:AQ80)","v":1},{"$f":"SUM(E80:AQ80)","v":300},null,null,null,null,null,null,null,null,null,null,null,null,null,null,null,300]
["\"","Reulbach, Mark",{"$f":"COUNT(E81:AQ81)","v":1},{"$f":"SUM(E81:AQ81)","v":300},null,null,null,null,null,null,null,null,null,300]
["\"","Seitzinger, Nick",{"$f":"COUNT(E82:AQ82)","v":1},{"$f":"SUM(E82:AQ82)","v":300},null,null,null,null,300]
[79,"D'Agostino, Sam",{"$f":"COUNT(E83:AQ83)","v":3},{"$f":"SUM(E83:AQ83)","v":295},null,null,null,null,null,null,null,null,null,null,null,null,null,null,null,null,null,null,null,null,null,null,null,null,null,125,60,null,null,null,110]
["\"","Rath, Matt",{"$f":"COUNT(E84:AQ84)","v":3},{"$f":"SUM(E84:AQ84)","v":295},null,null,null,null,null,null,null,null,null,null,null,160,null,null,null,null,null,null,null,null,null,80,null,55]
[81,"Dionise, Pam",{"$f":"COUNT(E85:AQ85)","v":2},{"$f":"SUM(E85:AQ85)","v":293},null,null,null,null,null,null,null,null,null,200,null,null,null,null,null,null,null,null,null,null,null,null,null,null,null,null,null,93]
[82,"Levy, Jay",{"$f":"COUNT(E86:AQ86)","v":2},{"$f":"SUM(E86:AQ86)","v":275},null,null,null,null,null,null,null,175,null,null,100]
["\"","Sawyer, Chris",{"$f":"COUNT(E87:AQ87)","v":1},{"$f":"SUM(E87:AQ87)","v":275},null,275]
[84,"Burg, Bill",{"$f":"COUNT(E88:AQ88)","v":1},{"$f":"SUM(E88:AQ88)","v":270},null,null,null,null,null,null,null,null,null,null,null,null,null,null,null,null,null,null,null,null,null,null,null,null,null,null,null,null,null,null,270]
["\"","Hamlin, Tom",{"$f":"COUNT(E89:AQ89)","v":1},{"$f":"SUM(E89:AQ89)","v":270},null,null,null,null,null,null,null,null,null,null,null,null,null,null,null,null,null,null,null,null,null,null,null,null,null,270]
[86,"Murray, Jim",{"$f":"COUNT(E90:AQ90)","v":1},{"$f":"SUM(E90:AQ90)","v":254},null,null,null,null,null,null,null,null,null,null,null,null,null,null,null,null,null,null,null,null,null,null,null,null,null,null,null,null,254]
[87,"Guy, Gavin",{"$f":"COUNT(E91:AQ91)","v":1},{"$f":"SUM(E91:AQ91)","v":250},null,null,null,null,null,null,null,null,null,250]
["\"","Mosher, Lew",{"$f":"COUNT(E92:AQ92)","v":2},{"$f":"SUM(E92:AQ92)","v":250},null,null,null,null,null,null,null,null,null,null,150,null,100]
["\"","Pellitier, Terese",{"$f":"COUNT(E93:AQ93)","v":1},{"$f":"SUM(E93:AQ93)","v":250},null,null,null,null,null,250]
["\"","Seeb, Mark",{"$f":"COUNT(E94:AQ94)","v":1},{"$f":"SUM(E94:AQ94)","v":250},null,null,null,null,null,null,null,null,null,null,null,null,null,null,null,null,null,null,null,null,null,null,null,250]
[91,"Leslie, Doug",{"$f":"COUNT(E95:AQ95)","v":2},{"$f":"SUM(E95:AQ95)","v":240},null,null,null,null,null,null,null,null,null,null,null,null,null,null,null,null,null,null,100,null,140]
["\"","Maines, Cheri",{"$f":"COUNT(E96:AQ96)","v":2},{"$f":"SUM(E96:AQ96)","v":240},null,null,null,null,null,null,null,null,null,null,150,null,null,null,null,null,null,null,null,null,null,null,null,null,null,90]
["\"","Zoltoski, Paul",{"$f":"COUNT(E97:AQ97)","v":2},{"$f":"SUM(E97:AQ97)","v":240},null,null,null,null,null,null,null,null,null,null,null,null,null,null,null,null,30,210]
[94,"DiPietro, Larry",{"$f":"COUNT(E98:AQ98)","v":1},{"$f":"SUM(E98:AQ98)","v":238},null,null,null,null,null,null,null,null,null,null,238]
[95,"Dettore, Don",{"$f":"COUNT(E99:AQ99)","v":3},{"$f":"SUM(E99:AQ99)","v":235},null,null,null,null,null,null,null,null,null,null,null,null,null,null,null,null,null,null,null,null,null,null,null,null,null,null,null,70,null,155,10]
[96,"Schmitz, Al",{"$f":"COUNT(E100:AQ100)","v":1},{"$f":"SUM(E100:AQ100)","v":230},null,null,null,null,null,null,null,null,null,null,null,null,null,230]
["\"","Welshoff, Jerry",{"$f":"COUNT(E101:AQ101)","v":2},{"$f":"SUM(E101:AQ101)","v":230},null,null,null,null,null,null,null,null,null,null,null,null,null,null,null,null,null,120,110]
[98,"Annesi, Annette",{"$f":"COUNT(E102:AQ102)","v":1},{"$f":"SUM(E102:AQ102)","v":225},null,null,null,225]
["\"","Barringer, Brian",{"$f":"COUNT(E103:AQ103)","v":2},{"$f":"SUM(E103:AQ103)","v":225},null,null,null,null,null,null,null,null,null,null,null,null,null,null,null,null,null,null,null,105,null,null,null,120]
[{"$f":"IF(D104=D102,\"\"\"\",ROW(A104)-ROW($A$4))","v":"\""},"Deprez, Larry",{"$f":"COUNT(E104:AQ104)","v":1},{"$f":"SUM(E104:AQ104)","v":225},null,null,null,null,null,null,null,null,null,null,null,null,null,null,null,null,null,null,null,null,null,null,225]
[{"$f":"IF(D105=D103,\"\"\"\",ROW(A105)-ROW($A$4))","v":"\""},"Eckerd, Nancy",{"$f":"COUNT(E105:AQ105)","v":1},{"$f":"SUM(E105:AQ105)","v":225},null,null,null,225]
["\"","Lindsay, Ashlyn",{"$f":"COUNT(E106:AQ106)","v":1},{"$f":"SUM(E106:AQ106)","v":225},null,null,null,null,null,null,null,null,null,null,null,null,null,null,225]
[103,"Tauer, Adam",{"$f":"COUNT(E107:AQ107)","v":1},{"$f":"SUM(E107:AQ107)","v":215},null,null,null,null,null,null,null,null,null,null,null,null,null,215]
[104,"TAW",{"$f":"COUNT(E108:AQ108)","v":1},{"$f":"SUM(E108:AQ108)","v":214},null,null,null,null,null,null,null,null,null,null,null,null,null,null,null,null,null,null,null,null,null,null,null,null,null,null,null,null,null,214]
[105,"Britt, Chris",{"$f":"COUNT(E109:AQ109)","v":1},{"$f":"SUM(E109:AQ109)","v":213},null,null,null,null,null,null,null,null,null,null,null,null,213]
[106,"C., Don",{"$f":"COUNT(E110:AQ110)","v":2},{"$f":"SUM(E110:AQ110)","v":202.5},null,null,null,null,null,null,null,null,null,null,null,null,null,null,null,null,null,null,null,null,null,null,null,null,null,150,null,null,null,null,52.5]
[107,"Ashbaugh, D",{"$f":"COUNT(E111:AQ111)","v":1},{"$f":"SUM(E111:AQ111)","v":200},null,null,null,null,null,null,null,null,null,null,null,null,null,null,null,null,null,null,null,200]
["\"","Haag, Larry",{"$f":"COUNT(E112:AQ112)","v":1},{"$f":"SUM(E112:AQ112)","v":200},null,null,null,null,null,null,null,null,null,null,null,null,null,null,null,null,null,null,null,200]
["\"","Lamb, David",{"$f":"COUNT(E113:AQ113)","v":1},{"$f":"SUM(E113:AQ113)","v":200},null,null,null,null,null,null,null,null,null,null,null,null,null,null,200]
["\"","McVay, Rob",{"$f":"COUNT(E114:AQ114)","v":1},{"$f":"SUM(E114:AQ114)","v":200},null,null,null,null,null,null,null,null,null,null,null,200]
["\"","Turchin, Kevin",{"$f":"COUNT(E115:AQ115)","v":1},{"$f":"SUM(E115:AQ115)","v":200},null,null,null,null,null,200]
[112,"Baxendell, K.",{"$f":"COUNT(E116:AQ116)","v":1},{"$f":"SUM(E116:AQ116)","v":195},null,null,null,null,null,null,null,null,null,null,null,null,null,null,null,null,null,null,null,null,null,null,null,null,null,null,null,null,null,null,195]
["\"","Campe, G.",{"$f":"COUNT(E117:AQ117)","v":2},{"$f":"SUM(E117:AQ117)","v":195},null,null,null,null,null,null,null,null,null,null,null,null,null,null,null,null,null,null,null,null,null,null,35,null,null,null,null,null,null,null,160]
[114,"Shuler, Amy",{"$f":"COUNT(E118:AQ118)","v":1},{"$f":"SUM(E118:AQ118)","v":190},null,null,190]
[115,"Mazzeo, John",{"$f":"COUNT(E119:AQ119)","v":2},{"$f":"SUM(E119:AQ119)","v":188},null,null,null,null,null,null,null,null,null,null,null,null,null,null,null,null,null,null,null,null,null,150,null,null,null,null,38]
["\"","Pannes, Pete",{"$f":"COUNT(E120:AQ120)","v":1},{"$f":"SUM(E120:AQ120)","v":188},null,null,null,null,null,null,null,null,188]
["\"","Rumora, Frank",{"$f":"COUNT(E121:AQ121)","v":2},{"$f":"SUM(E121:AQ121)","v":188},null,null,null,null,null,null,null,null,null,null,null,null,null,null,null,null,null,null,null,null,null,50,null,null,null,null,null,138]
[118,"Hartz, Greg",{"$f":"COUNT(E122:AQ122)","v":2},{"$f":"SUM(E122:AQ122)","v":185},null,null,null,null,null,null,null,null,null,null,null,null,null,null,null,null,110,null,null,null,null,null,null,75]
[119,"D'Agostino, Shirley",{"$f":"COUNT(E123:AQ123)","v":2},{"$f":"SUM(E123:AQ123)","v":175},null,null,null,null,null,null,null,null,null,null,null,null,null,null,null,null,null,null,null,null,null,null,null,null,null,50,125]
["\"","DeGennaro, Jim",{"$f":"COUNT(E124:AQ124)","v":1},{"$f":"SUM(E124:AQ124)","v":175},null,null,null,null,null,null,null,null,null,null,null,null,null,null,null,null,null,null,null,null,null,null,null,null,null,175]
["\"","Hoppner, Pete",{"$f":"COUNT(E125:AQ125)","v":1},{"$f":"SUM(E125:AQ125)","v":175},null,null,null,null,null,null,null,null,null,null,null,null,null,null,null,null,null,null,null,null,null,null,null,null,null,null,null,null,null,null,null,null,175]
["\"","Kendrick, Nick",{"$f":"COUNT(E126:AQ126)","v":1},{"$f":"SUM(E126:AQ126)","v":175},null,null,null,null,null,null,null,null,null,null,null,null,null,null,null,null,null,null,null,null,null,null,null,null,null,null,null,null,175]
["\"","Musso, Cindy",{"$f":"COUNT(E127:AQ127)","v":1},{"$f":"SUM(E127:AQ127)","v":175},null,null,null,null,null,null,null,null,null,null,null,null,null,null,null,null,null,null,null,null,null,null,null,null,null,null,null,null,null,null,null,null,null,175]
["\"","Osier, Jack",{"$f":"COUNT(E128:AQ128)","v":1},{"$f":"SUM(E128:AQ128)","v":175},null,null,null,null,null,null,null,null,null,null,null,null,175]
["\"","Stevens, Thom",{"$f":"COUNT(E129:AQ129)","v":2},{"$f":"SUM(E129:AQ129)","v":175},null,null,null,null,null,null,null,null,null,null,null,null,null,null,null,null,null,null,null,null,null,null,null,null,null,null,null,null,null,null,null,null,140,null,35]
[126,"Kendrick, Colin",{"$f":"COUNT(E130:AQ130)","v":3},{"$f":"SUM(E130:AQ130)","v":171.7},null,null,null,null,null,null,null,null,null,null,null,null,null,null,null,null,null,null,null,null,130,null,null,null,null,null,null,null,null,25,null,16.7]
[127,"Cupelli, Rochelle",{"$f":"COUNT(E131:AQ131)","v":1},{"$f":"SUM(E131:AQ131)","v":170},null,null,null,170]
["\"","VanNevel, Brian",{"$f":"COUNT(E132:AQ132)","v":1},{"$f":"SUM(E132:AQ132)","v":170},null,null,null,null,null,null,null,null,null,null,null,null,null,170]
[129,"Sciarratta, Gary",{"$f":"COUNT(E133:AQ133)","v":2},{"$f":"SUM(E133:AQ133)","v":160},null,null,null,null,null,null,null,null,null,null,null,100,null,60]
[130,"Brock, John",{"$f":"COUNT(E134:AQ134)","v":1},{"$f":"SUM(E134:AQ134)","v":155},null,null,155]
["\"","Kendrick, Lois",{"$f":"COUNT(E135:AQ135)","v":1},{"$f":"SUM(E135:AQ135)","v":155},null,null,null,null,null,null,null,null,null,null,null,null,null,null,null,null,null,null,null,null,null,null,null,null,null,null,null,null,null,null,null,null,null,null,null,155]
[{"$f":"IF(D136=D135,\"\"\"\",ROW(A136)-ROW($A$4))","v":"\""},"Lasch, R.",{"$f":"COUNT(E136:AQ136)","v":1},{"$f":"SUM(E136:AQ136)","v":155},null,null,null,null,null,null,null,null,null,null,null,null,null,null,null,null,null,null,null,null,null,null,null,null,null,null,null,null,null,155]
["\"","Mahoney, Peter",{"$f":"COUNT(E137:AQ137)","v":1},{"$f":"SUM(E137:AQ137)","v":155},null,null,null,null,null,null,null,null,null,null,null,null,null,null,null,155]
[134,"Bonanza, N.",{"$f":"COUNT(E138:AQ138)","v":1},{"$f":"SUM(E138:AQ138)","v":150},null,null,null,null,null,null,null,null,null,null,null,null,null,null,null,null,null,null,null,null,null,null,null,null,null,null,null,null,null,null,null,null,null,null,150]
["\"","Bonsignore, Paul",{"$f":"COUNT(E139:AQ139)","v":1},{"$f":"SUM(E139:AQ139)","v":150},null,null,null,null,null,null,null,null,null,null,150]
["\"","Filiere, Bob",{"$f":"COUNT(E140:AQ140)","v":1},{"$f":"SUM(E140:AQ140)","v":150},null,null,null,null,null,null,null,null,null,null,null,null,null,null,null,null,150]
["\"","Kauffman, Jeannie",{"$f":"COUNT(E141:AQ141)","v":1},{"$f":"SUM(E141:AQ141)","v":150},null,null,null,null,null,null,null,null,null,null,null,null,null,null,null,null,null,null,null,null,null,null,null,null,null,null,null,null,null,null,150]
["\"","Monroe, John D",{"$f":"COUNT(E142:AQ142)","v":1},{"$f":"SUM(E142:AQ142)","v":150},null,null,null,150]
["\"","Shooshan, Ryan",{"$f":"COUNT(E143:AQ143)","v":1},{"$f":"SUM(E143:AQ143)","v":150},null,null,null,null,null,null,null,null,null,150]
["\"","Wall, Robert",{"$f":"COUNT(E144:AQ144)","v":1},{"$f":"SUM(E144:AQ144)","v":150},null,null,null,null,null,null,null,null,null,null,null,null,null,null,null,null,null,null,150]
["\"","Webster, Peter",{"$f":"COUNT(E145:AQ145)","v":1},{"$f":"SUM(E145:AQ145)","v":150},null,null,null,null,null,null,null,null,null,null,null,null,null,null,null,null,null,150]
[142,"Cortese, Ron",{"$f":"COUNT(E146:AQ146)","v":2},{"$f":"SUM(E146:AQ146)","v":143},null,null,null,null,null,null,null,null,null,null,null,null,null,null,null,null,null,null,null,null,null,null,null,null,null,null,null,93,50]
[143,"Doel, C.",{"$f":"COUNT(E147:AQ147)","v":1},{"$f":"SUM(E147:AQ147)","v":140},null,null,null,null,null,null,null,null,null,null,null,null,null,null,null,null,null,null,null,null,null,null,null,null,null,null,null,null,null,140]
["\"","Lindsay, CJ",{"$f":"COUNT(E148:AQ148)","v":1},{"$f":"SUM(E148:AQ148)","v":140},null,null,null,null,null,null,null,null,null,null,null,null,null,null,140]
[145,"Keenan, Tim",{"$f":"COUNT(E149:AQ149)","v":1},{"$f":"SUM(E149:AQ149)","v":138},null,null,null,null,null,null,null,null,null,null,null,null,null,null,null,null,null,null,null,null,null,null,null,null,null,null,null,138]
["\"","Koch, Jim",{"$f":"COUNT(E150:AQ150)","v":1},{"$f":"SUM(E150:AQ150)","v":138},null,null,null,null,null,null,null,null,null,null,null,null,null,null,null,null,null,null,null,null,null,null,null,null,null,null,null,null,138]
[147,"Milliman, Cathy",{"$f":"COUNT(E151:AQ151)","v":1},{"$f":"SUM(E151:AQ151)","v":135},null,null,null,null,null,null,null,null,null,null,null,null,null,null,null,null,null,null,135]
[148,"Lottmaier, B.",{"$f":"COUNT(E152:AQ152)","v":1},{"$f":"SUM(E152:AQ152)","v":133},null,null,null,null,null,null,null,null,null,null,null,null,null,null,null,null,null,null,null,null,null,null,null,null,null,null,null,null,null,null,null,133]
["\"","McErlain",{"$f":"COUNT(E153:AQ153)","v":1},{"$f":"SUM(E153:AQ153)","v":133},null,null,null,null,null,null,null,null,null,null,null,null,null,null,null,null,null,null,null,null,null,null,null,null,null,null,null,null,null,null,null,133]
[150,"B., Mike",{"$f":"COUNT(E154:AQ154)","v":1},{"$f":"SUM(E154:AQ154)","v":130},null,null,null,null,null,null,null,null,null,null,null,null,null,null,null,null,null,null,null,null,null,null,null,null,null,null,null,null,null,null,130]
["\"","Bellerose, Jason",{"$f":"COUNT(E155:AQ155)","v":1},{"$f":"SUM(E155:AQ155)","v":130},null,null,null,null,null,null,null,null,null,null,null,null,null,null,null,null,null,null,null,null,null,null,null,null,null,null,null,null,null,null,null,null,null,null,null,null,130]
["\"","Brado, Fritz",{"$f":"COUNT(E156:AQ156)","v":1},{"$f":"SUM(E156:AQ156)","v":130},null,null,null,null,null,null,null,null,null,null,null,null,null,null,null,null,null,null,null,130]
["\"","Clark, Vicki",{"$f":"COUNT(E157:AQ157)","v":2},{"$f":"SUM(E157:AQ157)","v":130},null,null,null,null,null,null,null,null,null,null,null,null,null,null,null,null,null,null,null,null,null,null,null,null,null,65,null,null,null,null,null,65]
["\"","Greeney, J.",{"$f":"COUNT(E158:AQ158)","v":1},{"$f":"SUM(E158:AQ158)","v":130},null,null,null,null,null,null,null,null,null,null,null,null,null,null,null,null,null,null,null,null,null,null,null,null,null,null,null,null,null,null,130]
["\"","Harris, Scott",{"$f":"COUNT(E159:AQ159)","v":2},{"$f":"SUM(E159:AQ159)","v":130},null,null,null,null,null,null,null,null,null,null,null,null,null,null,null,null,null,null,null,null,null,null,null,null,null,null,null,null,null,120,null,null,10]
["\"","Isola, Anthony",{"$f":"COUNT(E160:AQ160)","v":1},{"$f":"SUM(E160:AQ160)","v":130},null,null,null,null,null,null,null,null,null,null,null,null,null,130]
[157,"Panella, Mike",{"$f":"COUNT(E161:AQ161)","v":1},{"$f":"SUM(E161:AQ161)","v":125},null,null,null,null,null,null,null,null,125]
[158,"Bailey, Tom",{"$f":"COUNT(E162:AQ162)","v":1},{"$f":"SUM(E162:AQ162)","v":123},null,123]
["\"","Ricci, Wendy",{"$f":"COUNT(E163:AQ163)","v":1},{"$f":"SUM(E163:AQ163)","v":123},null,123]
["\"","Rowland, Merri",{"$f":"COUNT(E164:AQ164)","v":1},{"$f":"SUM(E164:AQ164)","v":123},null,123]
[161,"B38 DCups",{"$f":"COUNT(E165:AQ165)","v":1},{"$f":"SUM(E165:AQ165)","v":120},null,null,null,null,null,null,null,null,null,null,null,null,null,null,null,null,null,null,null,null,null,null,null,null,null,null,null,null,null,120]
["\"","Kauffman, GW",{"$f":"COUNT(E166:AQ166)","v":1},{"$f":"SUM(E166:AQ166)","v":120},null,null,null,null,null,null,null,null,null,null,null,null,null,null,null,null,null,120]
[163,"Nickerson, Dave",{"$f":"COUNT(E167:AQ167)","v":1},{"$f":"SUM(E167:AQ167)","v":119},null,null,null,null,null,null,null,null,null,null,null,null,119]
[164,"Wiley, Clayton",{"$f":"COUNT(E168:AQ168)","v":2},{"$f":"SUM(E168:AQ168)","v":115},null,null,null,null,null,null,null,null,null,null,null,null,null,null,null,null,null,null,null,null,null,null,null,null,null,null,null,null,null,null,null,null,60,null,null,null,55]
[165,"Mercer, Patricia",{"$f":"COUNT(E169:AQ169)","v":1},{"$f":"SUM(E169:AQ169)","v":110},null,null,null,null,null,null,null,null,null,null,null,null,null,null,null,110]
["\"","Nadritch, Todd",{"$f":"COUNT(E170:AQ170)","v":1},{"$f":"SUM(E170:AQ170)","v":110},null,null,null,null,null,null,null,null,null,null,null,null,null,null,null,null,110]
["\"","Webster, Sue",{"$f":"COUNT(E171:AQ171)","v":1},{"$f":"SUM(E171:AQ171)","v":110},null,null,null,null,null,null,null,null,null,null,null,null,null,null,null,110]
[168,"Strickland, Dee",{"$f":"COUNT(E172:AQ172)","v":1},{"$f":"SUM(E172:AQ172)","v":109},null,null,null,null,null,null,null,null,null,null,null,null,null,null,null,null,null,null,null,null,null,null,null,null,null,null,null,null,null,null,null,null,null,null,null,null,null,109]
[169,"DeLoria, Mike",{"$f":"COUNT(E173:AQ173)","v":1},{"$f":"SUM(E173:AQ173)","v":105},null,null,null,null,null,null,null,null,null,null,null,null,null,null,null,null,null,null,null,null,105]
["\"","Moore, Bigry",{"$f":"COUNT(E174:AQ174)","v":1},{"$f":"SUM(E174:AQ174)","v":105},null,null,null,null,null,null,null,null,null,null,null,null,null,null,null,null,null,null,null,null,105]
["\"","Palazini, Brian",{"$f":"COUNT(E175:AQ175)","v":1},{"$f":"SUM(E175:AQ175)","v":105},null,null,null,null,null,null,null,null,null,null,null,null,null,null,105]
["\"","Terrana, Joe",{"$f":"COUNT(E176:AQ176)","v":1},{"$f":"SUM(E176:AQ176)","v":105},null,null,null,null,null,null,null,null,null,null,null,null,null,null,null,null,null,null,null,null,null,null,null,null,null,null,null,null,105]
[173,"Barz, Tom",{"$f":"COUNT(E177:AQ177)","v":1},{"$f":"SUM(E177:AQ177)","v":100},null,null,null,null,null,null,100]
["\"","Bernacchia, Lou",{"$f":"COUNT(E178:AQ178)","v":1},{"$f":"SUM(E178:AQ178)","v":100},null,null,null,null,null,null,null,null,null,100]
["\"","Cuch",{"$f":"COUNT(E179:AQ179)","v":1},{"$f":"SUM(E179:AQ179)","v":100},null,null,null,null,null,null,null,null,null,null,null,null,null,null,null,null,null,null,100]
["\"","Kaufman, Randy",{"$f":"COUNT(E180:AQ180)","v":1},{"$f":"SUM(E180:AQ180)","v":100},100]
["\"","Kelley, Jim",{"$f":"COUNT(E181:AQ181)","v":1},{"$f":"SUM(E181:AQ181)","v":100},null,null,null,null,null,null,100]
["\"","Legg, Bill",{"$f":"COUNT(E182:AQ182)","v":1},{"$f":"SUM(E182:AQ182)","v":100},null,null,null,null,null,null,null,null,null,null,null,null,null,null,null,null,null,null,null,null,null,null,null,null,null,null,null,null,null,null,null,null,null,null,100]
["\"","Rakoski, Frank",{"$f":"COUNT(E183:AQ183)","v":1},{"$f":"SUM(E183:AQ183)","v":100},null,null,null,null,null,null,null,null,null,null,null,null,null,100]
["\"","Sawyer, Randy",{"$f":"COUNT(E184:AQ184)","v":1},{"$f":"SUM(E184:AQ184)","v":100},100]
["\"","Snover, Eileen",{"$f":"COUNT(E185:AQ185)","v":1},{"$f":"SUM(E185:AQ185)","v":100},null,null,null,null,100]
["\"","Spagnolo, J",{"$f":"COUNT(E186:AQ186)","v":1},{"$f":"SUM(E186:AQ186)","v":100},null,null,null,null,null,null,null,null,null,null,null,null,null,null,null,null,null,100]
["\"","VanOrman, John",{"$f":"COUNT(E187:AQ187)","v":1},{"$f":"SUM(E187:AQ187)","v":100},null,null,null,null,null,null,null,null,null,null,null,null,null,null,null,null,null,null,null,null,null,null,null,null,null,null,null,null,null,null,null,null,null,100]
["\"","Warrick, Mike",{"$f":"COUNT(E188:AQ188)","v":1},{"$f":"SUM(E188:AQ188)","v":100},null,null,null,null,null,null,null,null,null,null,null,null,null,null,null,null,null,null,null,null,null,null,null,null,null,null,null,null,null,null,100]
["\"","Welshoff, Brendan",{"$f":"COUNT(E189:AQ189)","v":1},{"$f":"SUM(E189:AQ189)","v":100},null,null,null,null,null,null,null,null,null,null,null,100]
[186,"Giuffrida, Ron",{"$f":"COUNT(E190:AQ190)","v":1},{"$f":"SUM(E190:AQ190)","v":97.5},null,null,null,null,null,null,null,null,null,null,null,null,null,null,null,null,null,null,null,null,null,null,null,null,97.5]
[187,"White, Donna",{"$f":"COUNT(E191:AQ191)","v":2},{"$f":"SUM(E191:AQ191)","v":91.5},null,null,null,null,null,null,null,null,null,null,null,null,null,null,null,null,null,null,null,null,null,null,null,null,57.5,null,null,34]
[188,"Jackson, Tom",{"$f":"COUNT(E192:AQ192)","v":1},{"$f":"SUM(E192:AQ192)","v":90},null,null,null,null,null,null,null,null,null,null,null,null,null,null,null,null,null,null,null,null,null,null,null,null,null,null,null,null,null,null,90]
["\"","Paul2",{"$f":"COUNT(E193:AQ193)","v":1},{"$f":"SUM(E193:AQ193)","v":90},null,null,null,null,null,null,null,null,null,null,null,null,null,null,null,null,null,null,null,null,null,null,null,null,null,90]
["\"","Polisseni, Bob",{"$f":"COUNT(E194:AQ194)","v":2},{"$f":"SUM(E194:AQ194)","v":90},null,null,null,null,null,null,null,null,null,null,null,null,null,null,null,null,null,null,null,null,null,80,null,null,null,null,null,null,null,null,null,null,10]
["\"","Prichard,Tyler",{"$f":"COUNT(E195:AQ195)","v":1},{"$f":"SUM(E195:AQ195)","v":90},null,null,null,null,null,null,null,null,null,null,null,null,null,null,null,null,null,null,null,null,90]
["\"","Rathbun, Paul",{"$f":"COUNT(E196:AQ196)","v":1},{"$f":"SUM(E196:AQ196)","v":90},null,null,null,null,null,null,null,null,null,null,null,null,null,null,null,null,null,null,null,null,null,null,null,null,null,null,null,null,90]
["\"","Roesch, Rick",{"$f":"COUNT(E197:AQ197)","v":1},{"$f":"SUM(E197:AQ197)","v":90},null,null,null,null,null,null,null,null,null,null,null,null,null,null,null,null,null,null,null,90]
[194,"Barb",{"$f":"COUNT(E198:AQ198)","v":1},{"$f":"SUM(E198:AQ198)","v":85},null,null,null,null,null,null,null,null,null,null,null,null,null,null,null,null,null,null,null,null,null,null,null,null,null,null,85]
["\"","Klips, J.",{"$f":"COUNT(E199:AQ199)","v":1},{"$f":"SUM(E199:AQ199)","v":85},null,null,null,null,null,null,null,null,null,null,null,null,null,null,null,null,null,null,null,null,null,null,null,null,null,null,null,null,null,null,null,85]
[{"$f":"IF(D200=D199,\"\"\"\",ROW(A200)-ROW($A$4))","v":"\""},"Roe",{"$f":"COUNT(E200:AQ200)","v":1},{"$f":"SUM(E200:AQ200)","v":85},null,null,null,null,null,null,null,null,null,null,null,null,null,null,null,null,null,null,null,null,null,null,null,null,null,null,85]
[197,"Bel, M.",{"$f":"COUNT(E201:AQ201)","v":1},{"$f":"SUM(E201:AQ201)","v":80},null,null,null,null,null,null,null,null,null,null,null,null,null,null,null,null,null,null,null,null,null,null,null,null,null,null,null,null,null,null,80]
["\"","Lilley, Dianne",{"$f":"COUNT(E202:AQ202)","v":1},{"$f":"SUM(E202:AQ202)","v":80},null,null,null,null,null,null,null,null,null,null,null,null,null,null,null,null,null,null,null,null,null,null,null,null,null,null,null,null,null,null,80]
["\"","Updike, B.",{"$f":"COUNT(E203:AQ203)","v":1},{"$f":"SUM(E203:AQ203)","v":80},null,null,null,null,null,null,null,null,null,null,null,null,null,null,null,null,null,null,null,null,null,null,null,null,null,null,null,null,80]
[200,"Balcerzak, Jim",{"$f":"COUNT(E204:AQ204)","v":1},{"$f":"SUM(E204:AQ204)","v":70},null,null,null,null,null,null,null,null,null,null,null,null,null,null,null,null,null,null,null,null,null,null,null,null,null,null,null,null,null,null,null,null,null,null,70]
[201,"Varner, Andrea",{"$f":"COUNT(E205:AQ205)","v":1},{"$f":"SUM(E205:AQ205)","v":80},null,null,null,null,null,null,null,null,null,null,null,null,null,null,null,null,null,null,null,null,null,null,null,null,null,null,null,null,null,null,null,null,80]
[202,"Furguson, Lori \"Myrtle\"",{"$f":"COUNT(E206:AQ206)","v":1},{"$f":"SUM(E206:AQ206)","v":78},null,null,null,null,null,null,null,null,null,null,null,null,null,null,null,78]
[{"$f":"IF(D207=D206,\"\"\"\",ROW(A207)-ROW($A$4))","v":203},"Burr, Joyce",{"$f":"COUNT(E207:AQ207)","v":1},{"$f":"SUM(E207:AQ207)","v":75},null,null,null,null,null,null,null,null,null,null,null,null,null,null,null,null,null,null,null,null,null,null,null,null,null,null,null,null,null,null,null,null,null,75]
[{"$f":"IF(D208=D206,\"\"\"\",ROW(A208)-ROW($A$4))","v":204},"O'Hare, Ed",{"$f":"COUNT(E208:AQ208)","v":1},{"$f":"SUM(E208:AQ208)","v":75},null,null,null,null,null,null,null,null,null,null,null,null,null,null,null,null,null,null,null,null,null,null,null,null,null,null,null,null,null,null,null,null,null,75]
[205,"Lindsay, Scott",{"$f":"COUNT(E209:AQ209)","v":1},{"$f":"SUM(E209:AQ209)","v":65},null,null,null,null,null,null,null,null,null,null,null,null,null,null,null,null,null,null,null,null,null,null,65]
["\"","Lnicky",{"$f":"COUNT(E210:AQ210)","v":1},{"$f":"SUM(E210:AQ210)","v":65},null,null,null,null,null,null,null,null,null,null,null,null,null,null,null,null,null,null,null,null,null,65]
["\"","Lyons, Margaret",{"$f":"COUNT(E211:AQ211)","v":1},{"$f":"SUM(E211:AQ211)","v":65},null,null,null,null,null,null,null,null,null,null,null,null,null,null,null,null,null,null,null,null,null,null,65]
["\"","Penazek, Leon",{"$f":"COUNT(E212:AQ212)","v":1},{"$f":"SUM(E212:AQ212)","v":65},null,null,null,null,null,null,null,null,null,null,null,null,null,null,null,null,null,null,null,null,null,null,null,null,null,null,null,null,65]
["\"","STS",{"$f":"COUNT(E213:AQ213)","v":1},{"$f":"SUM(E213:AQ213)","v":65},null,null,null,null,null,null,null,null,null,null,null,null,null,null,null,null,null,null,null,null,null,null,null,null,null,null,null,null,null,null,null,65]
[210,"Canton, J.",{"$f":"COUNT(E214:AQ214)","v":1},{"$f":"SUM(E214:AQ214)","v":64},null,null,null,null,null,null,null,null,null,null,null,null,null,null,null,null,null,null,null,null,null,null,null,null,null,null,null,null,null,64]
[211,"Guck, Jim",{"$f":"COUNT(E215:AQ215)","v":1},{"$f":"SUM(E215:AQ215)","v":60},null,null,null,null,null,null,null,null,null,null,null,null,null,null,null,null,null,null,null,null,null,null,null,null,null,60]
["\"","Harris, Peggy",{"$f":"COUNT(E216:AQ216)","v":1},{"$f":"SUM(E216:AQ216)","v":60},null,null,null,null,null,null,null,null,null,null,null,null,null,60]
["\"","Murphy, Jim",{"$f":"COUNT(E217:AQ217)","v":1},{"$f":"SUM(E217:AQ217)","v":60},null,null,null,null,null,null,null,null,null,null,null,null,null,null,null,null,null,null,null,null,null,null,null,null,null,null,null,60]
[214,"Addona, J.",{"$f":"COUNT(E218:AQ218)","v":1},{"$f":"SUM(E218:AQ218)","v":53},null,null,null,null,null,null,null,null,null,null,null,null,null,null,null,null,null,null,null,null,null,null,null,null,null,null,null,null,null,53]
[215,"Murphy, John",{"$f":"COUNT(E219:AQ219)","v":1},{"$f":"SUM(E219:AQ219)","v":60},null,null,null,null,null,null,null,null,null,null,null,null,null,60]
[216,"D'Agostino, Bob",{"$f":"COUNT(E220:AQ220)","v":1},{"$f":"SUM(E220:AQ220)","v":57.5},null,null,null,null,null,null,null,null,null,null,null,null,null,null,null,null,null,null,null,null,null,null,null,null,57.5]
[217,"Grotz, D.",{"$f":"COUNT(E221:AQ221)","v":1},{"$f":"SUM(E221:AQ221)","v":55},null,null,null,null,null,null,null,null,null,null,null,null,null,null,null,null,null,null,null,null,null,null,null,null,null,null,null,null,null,null,null,null,null,null,null,55]
["\"","Kemp, R.",{"$f":"COUNT(E222:AQ222)","v":1},{"$f":"SUM(E222:AQ222)","v":55},null,null,null,null,null,null,null,null,null,null,null,null,null,null,null,null,null,null,null,null,null,null,null,55]
["\"","Peterson, D.",{"$f":"COUNT(E223:AQ223)","v":1},{"$f":"SUM(E223:AQ223)","v":55},null,null,null,null,null,null,null,null,null,null,null,null,null,null,null,null,null,null,null,null,null,null,null,null,null,null,null,null,null,null,null,null,null,null,null,55]
[220,"Bailey, B.",{"$f":"COUNT(E224:AQ224)","v":1},{"$f":"SUM(E224:AQ224)","v":52.5},null,null,null,null,null,null,null,null,null,null,null,null,null,null,null,null,null,null,null,null,null,null,null,null,null,null,null,null,null,null,52.5]
["\"","Lilley, S.",{"$f":"COUNT(E225:AQ225)","v":1},{"$f":"SUM(E225:AQ225)","v":52.5},null,null,null,null,null,null,null,null,null,null,null,null,null,null,null,null,null,null,null,null,null,null,null,null,null,null,null,null,null,null,52.5]
[222,"Contreras, M.",{"$f":"COUNT(E226:AQ226)","v":1},{"$f":"SUM(E226:AQ226)","v":50},null,null,null,null,null,null,null,null,null,null,null,null,null,null,null,null,null,null,null,null,null,null,null,null,null,null,null,null,50]
["\"","Dunn, T.",{"$f":"COUNT(E227:AQ227)","v":1},{"$f":"SUM(E227:AQ227)","v":50},null,null,null,null,null,null,null,null,null,null,null,null,null,null,null,null,null,null,null,null,null,null,null,null,null,null,50]
["\"","Keller, Mike",{"$f":"COUNT(E228:AQ228)","v":1},{"$f":"SUM(E228:AQ228)","v":50},null,null,null,null,null,null,null,null,null,null,null,null,null,null,null,null,null,null,null,null,null,null,null,null,null,50]
["\"","Manrique, Rene",{"$f":"COUNT(E229:AQ229)","v":1},{"$f":"SUM(E229:AQ229)","v":50},null,null,null,null,null,null,null,null,null,null,null,null,null,null,null,null,null,null,null,null,50]
["\"","Velan, Dee",{"$f":"COUNT(E230:AQ230)","v":1},{"$f":"SUM(E230:AQ230)","v":50},null,null,null,null,null,null,null,null,null,null,null,null,null,null,null,null,null,null,null,null,null,null,null,null,null,null,null,null,null,null,null,null,null,null,50]
[227,"Buckley, Mark",{"$f":"COUNT(E231:AQ231)","v":1},{"$f":"SUM(E231:AQ231)","v":40},null,null,null,null,null,null,null,null,null,null,null,null,null,null,null,null,null,null,null,null,null,null,null,null,null,null,null,null,null,null,null,null,null,null,null,40]
["\"","Fetes, J.",{"$f":"COUNT(E232:AQ232)","v":1},{"$f":"SUM(E232:AQ232)","v":40},null,null,null,null,null,null,null,null,null,null,null,null,null,null,null,null,null,null,null,null,null,null,null,null,null,null,null,null,null,null,null,null,null,null,40]
[229,"Bigelow, Ray",{"$f":"COUNT(E233:AQ233)","v":1},{"$f":"SUM(E233:AQ233)","v":39},null,null,null,null,null,null,null,null,null,null,null,null,null,null,null,null,null,null,null,null,null,null,null,null,null,null,null,null,null,null,null,null,null,null,null,null,null,null,39]
[230,"D., Frank",{"$f":"COUNT(E234:AQ234)","v":1},{"$f":"SUM(E234:AQ234)","v":38},null,null,null,null,null,null,null,null,null,null,null,null,null,null,null,null,null,null,null,null,null,null,null,null,null,null,38]
["\"","DeGregorio, Mike",{"$f":"COUNT(E235:AQ235)","v":1},{"$f":"SUM(E235:AQ235)","v":38},null,null,null,null,null,null,null,null,null,null,null,null,null,null,null,null,null,null,null,null,null,null,null,null,null,null,38]
["\"","Poles, C.",{"$f":"COUNT(E236:AQ236)","v":1},{"$f":"SUM(E236:AQ236)","v":38},null,null,null,null,null,null,null,null,null,null,null,null,null,null,null,null,null,null,null,null,null,null,null,null,null,null,38]
[233,"Rath, Brian",{"$f":"COUNT(E237:AQ237)","v":1},{"$f":"SUM(E237:AQ237)","v":34},null,null,null,null,null,null,null,null,null,null,null,null,null,null,null,null,null,null,null,null,null,null,null,null,null,null,null,34]
[234,"Epstein, Mike",{"$f":"COUNT(E238:AQ238)","v":1},{"$f":"SUM(E238:AQ238)","v":30},null,null,null,null,null,null,null,null,null,null,null,null,null,null,null,null,null,null,null,null,null,null,null,null,null,null,null,null,null,null,null,null,null,null,null,null,30]
["\"","Haut, G",{"$f":"COUNT(E239:AQ239)","v":1},{"$f":"SUM(E239:AQ239)","v":30},null,null,null,null,null,null,null,null,null,null,null,null,null,null,null,null,30]
["\"","Kaye, Ken",{"$f":"COUNT(E240:AQ240)","v":1},{"$f":"SUM(E240:AQ240)","v":30},null,null,null,null,null,null,null,null,null,null,null,null,null,null,null,null,null,null,null,null,null,null,null,null,null,null,null,null,null,null,null,null,null,null,null,30]
["\"","Schaber, Brett",{"$f":"COUNT(E241:AQ241)","v":1},{"$f":"SUM(E241:AQ241)","v":30},null,null,null,null,null,null,null,null,null,null,null,null,null,null,null,null,30]
[238,"Clendenning, J.",{"$f":"COUNT(E242:AQ242)","v":1},{"$f":"SUM(E242:AQ242)","v":25},null,null,null,null,null,null,null,null,null,null,null,null,null,null,null,null,null,null,null,null,null,null,null,null,null,null,null,null,null,25]
["\"","Stein, M.",{"$f":"COUNT(E243:AQ243)","v":1},{"$f":"SUM(E243:AQ243)","v":25},null,null,null,null,null,null,null,null,null,null,null,null,null,null,null,null,null,null,null,null,null,null,null,null,null,null,null,null,null,25]
[240,"Cavellier, Ron",{"$f":"COUNT(E244:AQ244)","v":1},{"$f":"SUM(E244:AQ244)","v":19},null,null,null,null,null,null,null,null,null,null,null,null,null,null,null,null,null,null,null,null,null,null,null,null,null,null,null,null,null,null,null,null,null,null,null,null,null,null,19]
[241,"Passarelli, S.",{"$f":"COUNT(E245:AQ245)","v":1},{"$f":"SUM(E245:AQ245)","v":16.7},null,null,null,null,null,null,null,null,null,null,null,null,null,null,null,null,null,null,null,null,null,null,null,null,null,null,null,null,null,null,null,16.7]
[242,"B.B.",{"$f":"COUNT(E246:AQ246)","v":1},{"$f":"SUM(E246:AQ246)","v":10},null,null,null,null,null,null,null,null,null,null,null,null,null,null,null,null,null,null,null,null,null,null,null,null,null,null,null,null,null,null,10]
["\"","Barker, Sue",{"$f":"COUNT(E247:AQ247)","v":1},{"$f":"SUM(E247:AQ247)","v":10},null,null,null,null,null,null,null,null,null,null,null,null,null,null,null,null,null,null,null,null,null,null,null,null,null,null,null,null,null,null,null,null,10]
["\"","Bundy, Jim",{"$f":"COUNT(E248:AQ248)","v":1},{"$f":"SUM(E248:AQ248)","v":10},null,null,null,null,null,null,null,null,null,null,null,null,null,null,null,null,null,null,null,null,null,null,null,null,null,null,null,null,null,null,10]
["\"","Monroe, John",{"$f":"COUNT(E249:AQ249)","v":1},{"$f":"SUM(E249:AQ249)","v":10},null,null,null,null,null,null,null,null,null,null,null,null,null,null,null,null,null,null,null,null,null,null,null,null,null,null,null,null,null,null,null,null,10]
["\"","O'Neill, Steve",{"$f":"COUNT(E250:AQ250)","v":1},{"$f":"SUM(E250:AQ250)","v":10},null,null,null,null,null,null,null,null,null,null,null,null,null,null,null,null,null,null,null,null,null,10]
["\"","Sennett, Nancy",{"$f":"COUNT(E251:AQ251)","v":1},{"$f":"SUM(E251:AQ251)","v":10},null,null,null,null,null,null,null,null,null,null,null,null,null,null,null,null,null,null,null,null,null,10]
[{"$f":"IF(D252=D250,\"\"\"\",ROW(A252)-ROW($A$4))","v":"\""},"Strege, S.",{"$f":"COUNT(E252:AQ252)","v":1},{"$f":"SUM(E252:AQ252)","v":10},null,null,null,null,null,null,null,null,null,null,null,null,null,null,null,null,null,null,null,null,null,10]
[{"$f":"IF(D253=D251,\"\"\"\",ROW(A253)-ROW($A$4))","v":"\""},"Strickland, Shane",{"$f":"COUNT(E253:AQ253)","v":1},{"$f":"SUM(E253:AQ253)","v":10},null,null,null,null,null,null,null,null,null,null,null,null,null,null,null,null,null,null,null,null,null,null,null,null,null,null,null,null,null,null,null,null,10]
[{"$f":"IF(D254=D251,\"\"\"\",ROW(A254)-ROW($A$4))","v":"\""},"White, Gary",{"$f":"COUNT(E254:AQ254)","v":1},{"$f":"SUM(E254:AQ254)","v":10},null,null,null,null,null,null,null,null,null,null,null,null,null,null,null,null,null,null,null,null,null,10]